bitfinex-derivatives/quotes_BTCF0:USTF0_20250910
["timestamp","ask_amount","ask_price","bid_price","bid_amount"]
[1757497266421,1.29227527,112430.0,112420.0,0.30603]
[1757497266614,1.29227527,112430.0,112410.0,0.46751527]
[1757497267224,1.29227527,112430.0,112420.0,0.003]
[1757497267623,1.29227527,112430.0,112420.0,0.001]
[1757497268220,1.19824,112430.0,112420.0,0.11814527]
[1757497268427,1.19063,112430.0,112420.0,0.13165527]
[1757497268621,1.19063,112430.0,112420.0,0.22569054]
[1757497269121,1.19063,112430.0,112420.0,0.13065527]
[1757497269820,1.19063,112430.0,112420.0,0.13265527]
[1757497273520,1.19067,112430.0,112420.0,0.13265527]
[1757497274328,1.19067,112430.0,112420.0,0.32082806]
[1757497278228,1.19067,112430.0,112420.0,0.3385125]
[1757497281327,1.33173403,112430.0,112420.0,0.3385125]
[1757497282028,1.19063,112430.0,112420.0,0.3385125]
[1757497282330,1.33173403,112430.0,112420.0,0.3385125]
[1757497290933,0.97093403,112430.0,112420.0,0.3385125]
[1757497294035,0.97093403,112430.0,112420.0,0.05630444]
[1757497294238,0.97093403,112430.0,112420.0,0.3385125]
[1757497296144,0.97093403,112430.0,112420.0,0.05630444]
[1757497296443,0.97093403,112430.0,112420.0,0.3385125]
[1757497296644,0.97093403,112430.0,112420.0,0.05630444]
[1757497296846,0.97093403,112430.0,112420.0,0.3385125]
[1757497299646,0.97093403,112430.0,112420.0,0.19740847]
[1757497300940,0.97093403,112430.0,112420.0,0.19540847]
[1757497304949,0.97093403,112430.0,112420.0,0.3365125]
[1757497305846,0.82983,112430.0,112420.0,0.3365125]
[1757497306048,0.97093403,112430.0,112420.0,0.3365125]
[1757497307453,0.97093403,112430.0,112420.0,0.19540847]
[1757497307646,0.16317403,112430.0,112420.0,0.19540847]
[1757497307846,0.97077403,112430.0,112420.0,0.19540847]
[1757497308752,0.02207,112430.0,112420.0,0.19540847]
[1757497308945,0.97073403,112430.0,112420.0,0.19540847]
[1757497309145,0.97073403,112430.0,112420.0,0.3365125]
[1757497313060,0.82963,112430.0,112420.0,0.3365125]
[1757497313255,0.97073403,112430.0,112420.0,0.3365125]
[1757497322066,0.82963,112430.0,112420.0,0.3365125]
[1757497322259,0.97073403,112430.0,112420.0,0.3365125]
[1757497325167,0.97073403,112430.0,112420.0,0.19540847]
[1757497326358,1.33153403,112430.0,112420.0,0.16421403]
[1757497326561,0.0212,112410.0,112400.0,0.46443664]
[1757497326764,0.96974403,112410.0,112400.0,0.05423261]
[1757497326966,0.96974403,112410.0,112400.0,0.19533664]
[1757497327166,0.96974403,112410.0,112400.0,0.33644067]
[1757497327361,1.33054403,112410.0,112400.0,0.42737403]
[1757497327663,1.33054403,112410.0,112400.0,0.42837403]
[1757497328560,1.33815403,112410.0,112400.0,0.001]
[1757497329966,1.72925806,112410.0,112400.0,0.001]
[1757497330565,1.58815403,112410.0,112400.0,0.001]
[1757497331671,1.72925806,112410.0,112400.0,0.001]
[1757497331872,0.02121,112380.0,112370.0,0.19476538]
[1757497332066,0.96975403,112380.0,112370.0,0.19476538]
[1757497332268,0.96975403,112380.0,112370.0,0.17665403]
[1757497332474,1.33055403,112380.0,112370.0,0.17665403]
[1757497333067,1.33959916,112380.0,112370.0,0.17665403]
[1757497333964,1.33959916,112380.0,112370.0,0.17965403]
[1757497334475,1.19849513,112380.0,112370.0,0.13270828]
[1757497334675,1.19853513,112380.0,112370.0,0.13270828]
[1757497335179,1.19853513,112380.0,112370.0,0.13670828]
[1757497335671,1.29269341,112380.0,112370.0,0.13670828]
[1757497335873,1.29269341,112380.0,112370.0,0.04255]
[1757497336679,1.29269341,112380.0,112370.0,0.03955]
[1757497336875,1.38685169,112380.0,112370.0,0.03955]
[1757497337177,1.29269341,112380.0,112370.0,0.004]
[1757497337378,1.38685169,112380.0,112370.0,0.004]
[1757497337679,1.39228169,112380.0,112370.0,0.004]
[1757497338478,1.39228169,112380.0,112360.0,0.01284]
[1757497338679,0.47616828,112370.0,112360.0,0.03565]
[1757497339577,1.18953,112370.0,112360.0,0.12980828]
[1757497339782,0.80752,112370.0,112360.0,0.22396656]
[1757497340079,0.39105513,112380.0,112370.0,0.03591]
[1757497340280,1.19857513,112380.0,112370.0,0.13006828]
[1757497340677,0.39105513,112380.0,112370.0,0.13006828]
[1757497340874,1.19861513,112380.0,112370.0,0.13006828]
[1757497341485,1.19961513,112380.0,112370.0,0.13006828]
[1757497342586,0.39205513,112380.0,112370.0,0.13006828]
[1757497342791,1.19961513,112380.0,112370.0,0.13006828]
[1757497344902,1.19961513,112380.0,112370.0,0.03591]
[1757497345094,1.29377341,112380.0,112370.0,0.03591]
[1757497345599,1.29377341,112380.0,112360.0,0.10699828]
[1757497345899,1.29377341,112380.0,112360.0,0.01284]
[1757497346098,1.29377341,112380.0,112360.0,0.10699828]
[1757497346294,0.11536828,112370.0,112360.0,0.12980828]
[1757497346503,0.92296828,112370.0,112360.0,0.12980828]
[1757497347194,1.28376828,112370.0,112360.0,0.03565]
[1757497347603,0.47616828,112370.0,112360.0,0.03565]
[1757497347904,1.28376828,112370.0,112360.0,0.03565]
[1757497348199,1.28376828,112370.0,112360.0,0.12980828]
[1757497348396,1.28376828,112370.0,112360.0,0.03565]
[1757497348595,1.28376828,112370.0,112360.0,0.0001]
[1757497348596,1.29137828,112370.0,112360.0,0.0001]
[1757497353309,0.48377828,112370.0,112360.0,0.0001]
[1757497353605,1.29141828,112370.0,112360.0,0.0001]
[1757497358011,0.48377828,112370.0,112360.0,0.0001]
[1757497358310,1.29141828,112370.0,112360.0,0.0001]
[1757497361110,0.48377828,112370.0,112360.0,0.0001]
[1757497361312,1.29137828,112370.0,112360.0,0.0001]
[1757497363010,1.38553656,112370.0,112360.0,0.0001]
[1757497363210,1.29137828,112370.0,112360.0,0.0001]
[1757497363912,0.48377828,112370.0,112360.0,0.0001]
[1757497364120,1.29137828,112370.0,112360.0,0.0001]
[1757497364708,0.48377828,112370.0,112360.0,0.0001]
[1757497364907,1.29137828,112370.0,112360.0,0.0001]
[1757497365214,0.48377828,112370.0,112360.0,0.0001]
[1757497365407,1.29137828,112370.0,112360.0,0.0001]
[1757497367213,0.48377828,112370.0,112360.0,0.0001]
[1757497367410,1.29137828,112370.0,112360.0,0.0001]
[1757497368317,1.19722,112370.0,112360.0,0.0001]
[1757497368514,1.29137828,112370.0,112360.0,0.0001]
[1757497369717,0.48377828,112370.0,112360.0,0.0001]
[1757497369916,1.29137828,112370.0,112360.0,0.0001]
[1757497375019,3.08709828,112370.0,112360.0,0.0001]
[1757497375920,3.08705828,112370.0,112360.0,0.02332]
[1757497376120,3.08705828,112370.0,112360.0,0.0001]
[1757497382423,2.9929,112370.0,112360.0,0.0001]
[1757497382609,3.08705828,112370.0,112360.0,0.0001]
[1757497396420,3.27550052,112370.0,112360.0,0.0001]
[1757497399328,2.91470052,112370.0,112360.0,0.0001]
[1757497399628,3.63630052,112370.0,112360.0,0.0001]
[1757497403528,2.82874052,112370.0,112360.0,0.0001]
[1757497403725,3.63614052,112370.0,112360.0,0.0001]
[1757497405529,2.82874052,112370.0,112360.0,0.0001]
[1757497405831,3.63610052,112370.0,112360.0,0.0001]
[1757497406232,2.82874052,112370.0,112360.0,0.0001]
[1757497406531,3.63610052,112370.0,112360.0,0.0001]
[1757497409026,3.63606052,112370.0,112360.0,0.0001]
[1757497414039,3.63602052,112370.0,112360.0,0.0001]
[1757497417943,3.63598052,112370.0,112360.0,0.0001]
[1757497418643,3.63798052,112370.0,112360.0,0.0001]
[1757497419045,2.83074052,112370.0,112360.0,0.0001]
[1757497419447,3.63798052,112370.0,112360.0,0.0001]
[1757497420543,2.83074052,112370.0,112360.0,0.0001]
[1757497420748,3.63798052,112370.0,112360.0,0.0001]
[1757497422352,2.83074052,112370.0,112360.0,0.0001]
[1757497422551,3.63798052,112370.0,112360.0,0.0001]
[1757497426964,3.65713998,112370.0,112360.0,0.0001]
[1757497427469,3.65709998,112370.0,112360.0,0.0001]
[1757497427656,3.70504241,112370.0,112360.0,0.0001]
[1757497430861,3.65709998,112370.0,112360.0,0.0001]
[1757497431967,2.93549998,112370.0,112360.0,0.0001]
[1757497432264,3.65709998,112370.0,112360.0,0.0001]
[1757497434468,3.72102744,112370.0,112360.0,0.0001]
[1757497450081,3.72203028,112370.0,112360.0,0.0001]
[1757497454285,3.65810282,112370.0,112360.0,0.0001]
[1757497454483,3.73801214,112370.0,112360.0,0.0001]
[1757497457992,3.73801214,112370.0,112360.0,1.1e-07]
[1757497458190,3.65810282,112370.0,112360.0,1.1e-07]
[1757497458393,3.56392884,112370.0,112360.0,1.1e-07]
[1757497459090,3.64384826,112370.0,112360.0,1.1e-07]
[1757497460990,3.64384826,112370.0,112340.0,0.0131]
[1757497461290,3.64384826,112370.0,112340.0,0.03513]
[1757497461291,0.47629327,112350.0,112340.0,0.03513]
[1757497461495,1.30241273,112350.0,112340.0,0.03513]
[1757497462296,1.30341557,112350.0,112340.0,0.03513]
[1757497462592,1.35137278,112350.0,112340.0,0.03513]
[1757497462992,0.54441278,112350.0,112340.0,0.03513]
[1757497463296,1.35137278,112350.0,112340.0,0.03513]
[1757497463994,1.42262154,112350.0,112340.0,0.03513]
[1757497464394,1.37466433,112350.0,112340.0,0.03513]
[1757497465395,0.47349106,112350.0,112340.0,0.03513]
[1757497465698,1.37462433,112350.0,112340.0,0.12934327]
[1757497466090,1.42258154,112350.0,112340.0,0.12934327]
[1757497466488,1.37462433,112350.0,112340.0,0.12934327]
[1757497466686,1.37462433,112350.0,112340.0,0.03513]
[1757497469300,1.42258154,112350.0,112340.0,0.03513]
[1757497469596,1.88302481,112350.0,112330.0,0.0131]
[1757497469799,0.57421654,112340.0,112320.0,0.07901489]
[1757497469998,1.28317327,112330.0,112320.0,0.05297326]
[1757497470197,1.31245233,112330.0,112320.0,0.05297326]
[1757497470999,1.30333557,112330.0,112320.0,0.05297326]
[1757497471603,1.30333557,112330.0,112320.0,0.05497326]
[1757497472201,1.30333557,112330.0,112320.0,0.14918653]
[1757497472396,1.30333557,112330.0,112320.0,0.15218653]
[1757497473097,1.30333557,112330.0,112320.0,0.05797326]
[1757497474194,1.31209701,112330.0,112320.0,0.05797326]
[1757497475303,1.31209701,112330.0,112320.0,0.15218653]
[1757497478502,1.21788374,112330.0,112320.0,0.15218653]
[1757497478801,1.2091623,112330.0,112320.0,0.15218653]
[1757497478998,1.2091623,112330.0,112320.0,0.2463998]
[1757497479199,1.2091623,112330.0,112320.0,0.15218653]
[1757497482801,1.21809688,112330.0,112320.0,0.15218653]
[1757497484110,1.2091623,112330.0,112320.0,0.15218653]
[1757497484904,1.2091623,112330.0,112320.0,0.05797326]
[1757497485203,1.2091623,112330.0,112320.0,0.15218653]
[1757497485404,1.21831384,112330.0,112320.0,0.15218653]
[1757497485799,1.2091623,112330.0,112320.0,0.15218653]
[1757497487504,1.2091623,112330.0,112320.0,0.05797326]
[1757497487700,1.2091623,112330.0,112320.0,0.15218653]
[1757497487899,1.2091623,112330.0,112320.0,0.2463998]
[1757497489201,1.2091623,112330.0,112320.0,0.15218653]
[1757497493409,1.2091623,112330.0,112320.0,0.2463998]
[1757497496412,0.0201623,112330.0,112320.0,0.34061307]
[1757497496609,0.8270423,112330.0,112320.0,0.2463998]
[1757497499614,0.8485923,112330.0,112320.0,0.2463998]
[1757497501617,0.0417123,112330.0,112320.0,0.2463998]
[1757497501817,0.8485523,112330.0,112320.0,0.2463998]
[1757497507819,0.8485523,112330.0,112320.0,0.15218653]
[1757497511121,0.8485523,112330.0,112320.0,0.2463998]
[1757497515014,0.8485123,112330.0,112320.0,0.2463998]
[1757497518426,0.8485123,112330.0,112320.0,0.3406351]
[1757497528434,0.98984322,112330.0,112320.0,0.3406351]
[1757497537044,0.0417123,112330.0,112320.0,0.3406351]
[1757497537247,0.98972322,112330.0,112320.0,0.3406351]
[1757497537741,0.8483923,112330.0,112320.0,0.3406351]
[1757497540545,0.8483923,112330.0,112320.0,0.05797326]
[1757497540747,0.8483923,112330.0,112320.0,0.3406351]
[1757497542448,0.98972322,112330.0,112320.0,0.3406351]
[1757497544348,1.03768043,112330.0,112320.0,0.3406351]
[1757497546143,0.98972322,112330.0,112320.0,0.3406351]
[1757497547051,0.98984463,112330.0,112320.0,0.3406351]
[1757497547354,0.98984463,112330.0,112320.0,0.05797326]
[1757497547545,0.98984463,112330.0,112320.0,0.3406351]
[1757497548650,0.98984463,112330.0,112320.0,0.05797326]
[1757497548948,0.98984463,112330.0,112320.0,0.3406351]
[1757497552847,0.04183371,112330.0,112320.0,0.3406351]
[1757497553147,0.98980463,112330.0,112320.0,0.3406351]
[1757497554550,0.82919284,112330.0,112320.0,0.3406351]
[1757497554742,0.84847451,112330.0,112320.0,0.3406351]
[1757497555250,0.04183451,112330.0,112320.0,0.3406351]
[1757497555452,0.84847451,112330.0,112320.0,0.3406351]
[1757497559854,0.84847451,112330.0,112320.0,0.05797326]
[1757497560054,0.84847451,112330.0,112320.0,0.3406351]
[1757497561459,0.04183451,112330.0,112320.0,0.3406351]
[1757497561651,0.84847451,112330.0,112320.0,0.3406351]
[1757497567946,0.04183451,112330.0,112320.0,0.3406351]
[1757497568147,0.84843451,112330.0,112320.0,0.3406351]
[1757497578460,0.84843451,112330.0,112320.0,0.32279184]
[1757497580463,0.84843451,112330.0,112320.0,0.22857886]
[1757497581166,0.04183451,112330.0,112320.0,0.22857886]
[1757497581463,0.84835451,112330.0,112320.0,0.22857886]
[1757497584561,1.20915451,112330.0,112320.0,0.22857886]
[1757497585169,1.20915451,112330.0,112320.0,0.13435443]
[1757497585468,1.20915451,112330.0,112320.0,0.22857886]
[1757497588472,1.20915451,112330.0,112320.0,0.13435443]
[1757497590569,1.20915451,112330.0,112320.0,0.22857886]
[1757497592778,1.20915451,112330.0,112320.0,0.13435443]
[1757497594480,1.25711172,112330.0,112320.0,0.13435443]
[1757497595180,1.25711172,112330.0,112320.0,0.22857886]
[1757497596875,0.45059172,112330.0,112320.0,0.22857886]
[1757497597173,1.25707172,112330.0,112320.0,0.22857886]
[1757497597581,1.35129615,112330.0,112320.0,0.04013]
[1757497597774,0.45059172,112330.0,112320.0,0.04013]
[1757497597975,0.45059172,112330.0,112320.0,0.22857886]
[1757497598281,0.85187451,112330.0,112320.0,0.22857886]
[1757497598574,0.04183451,112330.0,112320.0,0.22857886]
[1757497598780,0.85203451,112330.0,112320.0,0.22857886]
[1757497602278,0.06824172,112330.0,112320.0,0.93360329]
[1757497602484,0.02028451,112330.0,112320.0,0.93360329]
[1757497602982,0.0098442,112330.0,112320.0,0.93360329]
[1757497603183,0.83288,112340.0,112330.0,0.03521]
[1757497603382,0.83288,112340.0,112330.0,0.22365886]
[1757497604286,0.83288,112340.0,112330.0,0.12943443]
[1757497604492,0.83288,112340.0,112330.0,0.13043443]
[1757497605483,0.83288,112340.0,112330.0,0.13243443]
[1757497606282,0.83288,112340.0,112330.0,0.14125178]
[1757497606483,0.83288,112340.0,112330.0,0.13243443]
[1757497608388,0.83288,112340.0,112330.0,0.03821]
[1757497608587,0.83288,112340.0,112330.0,0.13243443]
[1757497612891,0.0226,112340.0,112330.0,0.13243443]
[1757497613188,0.8326,112340.0,112330.0,0.13243443]
[1757497614980,0.85170003,112340.0,112330.0,0.13243443]
[1757497620493,0.04170003,112340.0,112330.0,0.13243443]
[1757497620693,0.85122003,112340.0,112330.0,0.13243443]
[1757497621091,0.04170003,112340.0,112330.0,0.13243443]
[1757497621993,0.85110003,112340.0,112330.0,0.13243443]
[1757497632400,0.85110003,112340.0,112330.0,0.18050606]
[1757497634401,0.85110003,112340.0,112330.0,0.13243443]
[1757497635295,0.85050003,112340.0,112330.0,0.13243443]
[1757497636702,0.8314,112340.0,112330.0,0.13243443]
[1757497637302,0.0226,112340.0,112330.0,0.13243443]
[1757497637496,0.0226,112340.0,112330.0,0.24450582]
[1757497637702,0.85037519,112340.0,112330.0,0.24450582]
[1757497639604,0.85037519,112340.0,112330.0,0.15028139]
[1757497639911,0.04169519,112340.0,112330.0,0.15028139]
[1757497640202,0.85033519,112340.0,112330.0,0.24450582]
[1757497641500,0.85029519,112340.0,112330.0,0.24450582]
[1757497641994,0.04169519,112340.0,112330.0,0.24450582]
[1757497642194,0.85025519,112340.0,112330.0,0.24450582]
[1757497642403,0.85025519,112340.0,112330.0,0.33864182]
[1757497643099,0.01909519,112340.0,112330.0,1.35983425]
[1757497643300,0.01909519,112340.0,112330.0,1.44885285]
[1757497643301,0.00865608,112340.0,112330.0,1.44885285]
[1757497643500,0.00865608,112340.0,112330.0,2.30548448]
[1757497643702,0.02102,112360.0,112350.0,0.03447]
[1757497643901,0.82958,112360.0,112350.0,0.67785486]
[1757497644104,0.02102,112360.0,112350.0,0.67785486]
[1757497644411,0.02102,112360.0,112350.0,0.70990923]
[1757497645212,0.3608,112370.0,112360.0,0.01326]
[1757497645404,1.19046,112370.0,112360.0,0.31705486]
[1757497645907,0.38182,112370.0,112360.0,0.31705486]
[1757497646203,1.19046,112370.0,112360.0,0.31705486]
[1757497646906,1.19046,112370.0,112360.0,0.03447]
[1757497647108,1.19046,112370.0,112360.0,0.31705486]
[1757497647913,1.19046,112370.0,112360.0,0.39030099]
[1757497649009,1.19046,112370.0,112360.0,0.39923138]
[1757497652710,1.19014,112370.0,112360.0,0.39923138]
[1757497654612,1.33143243,112370.0,112360.0,0.10771613]
[1757497654809,1.33143243,112370.0,112360.0,0.39030099]
[1757497655209,1.3504698,112370.0,112360.0,0.39030099]
[1757497658615,1.20917737,112370.0,112360.0,0.39030099]
[1757497659510,1.20917737,112370.0,112360.0,0.10771613]
[1757497659719,1.20917737,112370.0,112360.0,0.39030099]
[1757497664921,0.40085737,112370.0,112360.0,0.39030099]
[1757497665122,1.20905737,112370.0,112360.0,0.39030099]
[1757497669826,1.20877737,112370.0,112360.0,0.39030099]
[1757497670422,0.40085737,112370.0,112360.0,0.39030099]
[1757497670617,1.20877737,112370.0,112360.0,0.39030099]
[1757497671121,0.84797737,112370.0,112360.0,0.39030099]
[1757497673128,0.84793737,112370.0,112360.0,0.39030099]
[1757497679825,0.84761737,112370.0,112360.0,0.39030099]
[1757497680829,0.04005737,112370.0,112360.0,0.53159342]
[1757497681027,0.84761737,112370.0,112360.0,0.89239342]
[1757497681226,0.04005737,112370.0,112360.0,0.89239342]
[1757497684735,0.06897721,112370.0,112360.0,0.89239342]
[1757497684935,0.08801458,112370.0,112360.0,0.89239342]
[1757497686136,0.08801458,112370.0,112360.0,1.16149342]
[1757497687232,0.06699458,112370.0,112360.0,1.16149342]
[1757497687438,0.04795721,112370.0,112360.0,1.16149342]
[1757497687830,0.07012721,112370.0,112360.0,1.16149342]
[1757497688732,0.07012721,112370.0,112360.0,1.02020099]
[1757497694442,0.02217,112370.0,112360.0,1.05225737]
[1757497696645,0.04124592,112370.0,112360.0,1.02020099]
[1757497700054,0.04124592,112370.0,112360.0,1.16149342]
[1757497702560,0.04124592,112370.0,112360.0,0.92589997]
[1757497705767,0.01907592,112370.0,112360.0,1.31812345]
[1757497705962,0.01907592,112370.0,112360.0,1.33413739]
[1757497705963,0.00863982,112370.0,112360.0,1.33413739]
[1757497706262,1.22047721,112400.0,112360.0,1.31809064]
[1757497706460,0.43127721,112400.0,112390.0,0.12986192]
[1757497706664,1.24291721,112400.0,112390.0,0.12986192]
[1757497708163,1.19496,112400.0,112390.0,0.12986192]
[1757497709464,0.38332,112400.0,112390.0,0.12986192]
[1757497709761,1.19472,112400.0,112390.0,0.12986192]
[1757497711667,1.19472,112400.0,112390.0,0.03572]
[1757497711864,1.19472,112400.0,112390.0,0.12986192]
[1757497714173,0.38332,112400.0,112390.0,0.12986192]
[1757497714363,1.19448,112400.0,112390.0,0.12986192]
[1757497715071,0.83368,112400.0,112390.0,0.22400384]
[1757497715367,0.02252,112400.0,112390.0,0.22400384]
[1757497715569,0.02252,112400.0,112390.0,0.23314525]
[1757497715768,0.02252,112400.0,112390.0,0.13900333]
[1757497716973,0.02252,112400.0,112390.0,0.14000333]
[1757497717671,0.02252,112400.0,112390.0,0.23414525]
[1757497718066,0.04152037,112400.0,112390.0,0.23414525]
[1757497718266,0.01900037,112400.0,112390.0,0.59494525]
[1757497718769,0.81144,112410.0,112390.0,0.59494525]
[1757497718972,0.85295862,112410.0,112400.0,0.22400384]
[1757497719575,0.85295862,112410.0,112400.0,0.58480384]
[1757497720267,0.85295862,112410.0,112400.0,0.65575047]
[1757497722170,0.04151862,112410.0,112400.0,0.65575047]
[1757497722369,0.85267862,112410.0,112400.0,0.65575047]
[1757497724774,0.85267862,112410.0,112400.0,0.20080855]
[1757497724964,1.30762054,112410.0,112400.0,0.10666663]
[1757497725169,1.30762054,112410.0,112400.0,0.07094663]
[1757497725170,1.56133054,112410.0,112400.0,0.07094663]
[1757497725373,1.56133054,112410.0,112390.0,0.46800192]
[1757497725676,1.31133054,112410.0,112390.0,0.10720192]
[1757497726173,1.31133054,112410.0,112400.0,0.09414192]
[1757497727177,1.21718862,112410.0,112400.0,0.11742192]
[1757497728070,0.40231862,112410.0,112400.0,0.11742192]
[1757497728270,0.04151862,112410.0,112400.0,0.60365102]
[1757497729180,0.04151862,112410.0,112400.0,0.67578605]
[1757497729879,0.04151862,112410.0,112400.0,0.46969503]
[1757497730080,0.04151862,112410.0,112400.0,0.65797887]
[1757497737982,0.04151862,112410.0,112400.0,0.29717887]
[1757497738283,0.04151862,112410.0,112400.0,0.65797887]
[1757497743084,0.01899862,112410.0,112400.0,1.27122079]
[1757497743281,0.04795721,112420.0,112400.0,1.27122079]
[1757497743486,0.07080721,112420.0,112410.0,0.58584384]
[1757497743682,0.08980583,112420.0,112410.0,0.58584384]
[1757497744483,0.04184862,112420.0,112410.0,0.58584384]
[1757497754494,0.04184862,112420.0,112410.0,0.58684384]
[1757497763806,0.04184862,112420.0,112410.0,0.39856]
[1757497764103,0.04184862,112420.0,112410.0,0.58684384]
[1757497764303,0.04184862,112420.0,112410.0,0.68076022]
[1757497766310,0.04184862,112420.0,112410.0,0.31996022]
[1757497766509,0.04184862,112420.0,112410.0,0.68076022]
[1757497774511,0.07080721,112420.0,112410.0,0.68076022]
[1757497774711,0.08980583,112420.0,112410.0,0.68076022]
[1757497784523,0.04184862,112420.0,112410.0,0.68076022]
[1757497796430,0.82641732,112420.0,112410.0,0.14210011]
[1757497796736,0.84541594,112420.0,112410.0,0.14210011]
[1757497796926,0.84663677,112420.0,112410.0,0.14210011]
[1757497797126,0.84663677,112420.0,112410.0,0.16380011]
[1757497798131,0.84663677,112420.0,112410.0,0.001]
[1757497798434,0.84663677,112420.0,112410.0,0.14210011]
[1757497799837,0.70182666,112420.0,112410.0,0.17729011]
[1757497800030,0.84292677,112420.0,112410.0,0.17729011]
[1757497800227,1.51222666,112420.0,112410.0,0.17729011]
[1757497801037,1.51222666,112420.0,112410.0,0.03619]
[1757497801335,1.51222666,112420.0,112410.0,0.17729011]
[1757497803140,1.46426945,112420.0,112410.0,0.17729011]
[1757497806940,0.40386945,112420.0,112410.0,0.17729011]
[1757497807234,1.21414945,112420.0,112410.0,0.31839022]
[1757497807439,0.04306945,112420.0,112410.0,0.31839022]
[1757497807640,0.85330945,112420.0,112410.0,0.31839022]
[1757497808333,0.85322945,112420.0,112410.0,0.31839022]
[1757497808535,0.85330945,112420.0,112410.0,0.31839022]
[1757497810740,0.85330945,112420.0,112410.0,0.67919022]
[1757497817748,0.85330945,112420.0,112410.0,0.53809011]
[1757497819541,0.99440956,112420.0,112410.0,0.53809011]
[1757497820644,0.85330945,112420.0,112410.0,0.53809011]
[1757497823049,0.85453028,112420.0,112410.0,0.53809011]
[1757497823950,0.85409028,112420.0,112410.0,0.53809011]
[1757497824150,0.85409028,112420.0,112410.0,0.67919022]
[1757497826347,0.85409028,112420.0,112410.0,0.49106759]
[1757497826947,0.85389028,112420.0,112410.0,0.49106759]
[1757497827451,0.90184749,112420.0,112410.0,0.49106759]
[1757497828452,0.85389028,112420.0,112410.0,0.49106759]
[1757497829051,0.90184749,112420.0,112410.0,0.49106759]
[1757497830454,0.85389028,112420.0,112410.0,0.49106759]
[1757497834155,0.85389028,112420.0,112410.0,0.39699]
[1757497834452,0.85389028,112420.0,112410.0,0.49106759]
[1757497835457,1.21469028,112420.0,112410.0,0.13026759]
[1757497835953,1.30876787,112420.0,112410.0,0.13026759]
[1757497836155,1.56247787,112420.0,112410.0,0.001]
[1757497836350,1.61043508,112420.0,112410.0,0.001]
[1757497836747,1.70451267,112420.0,112410.0,0.001]
[1757497837259,1.61043508,112420.0,112410.0,0.001]
[1757497837860,1.61165591,112420.0,112410.0,0.001]
[1757497839262,1.36165591,112420.0,112410.0,0.001]
[1757497840964,1.36165591,112420.0,112410.0,0.09507759]
[1757497842573,1.36165591,112420.0,112410.0,0.001]
[1757497848771,1.40777629,112420.0,112410.0,0.001]
[1757497849072,1.7057335,112420.0,112410.0,0.001]
[1757497854268,0.80205591,112420.0,112410.0,0.001]
[1757497854572,1.61077591,112420.0,112410.0,0.001]
[1757497854770,0.70797832,112420.0,112410.0,0.001]
[1757497855075,1.61065591,112420.0,112410.0,0.001]
[1757497855376,1.61187674,112420.0,112410.0,0.001]
[1757497858573,1.61187674,112420.0,112410.0,0.02335]
[1757497859476,1.61187674,112420.0,112410.0,0.001]
[1757497860174,1.61187674,112420.0,112410.0,0.02335]
[1757497860375,0.79956674,112420.0,112410.0,0.03718]
[1757497860572,1.60888674,112420.0,112410.0,0.03718]
[1757497860978,0.79956674,112420.0,112410.0,0.03718]
[1757497861173,1.60884674,112420.0,112410.0,0.13125759]
[1757497861983,1.96964674,112420.0,112410.0,0.13125759]
[1757497862583,1.87556915,112420.0,112410.0,0.13125759]
[1757497862882,1.96964674,112420.0,112410.0,0.03718]
[1757497863886,1.96964674,112420.0,112410.0,0.001]
[1757497864487,1.98562876,112420.0,112410.0,0.001]
[1757497864983,1.98562876,112420.0,112410.0,0.02335]
[1757497868584,1.98562876,112420.0,112410.0,0.001]
[1757497869288,1.98562876,112420.0,112410.0,0.09507759]
[1757497871086,1.89155117,112420.0,112410.0,0.11742759]
[1757497871386,1.19232895,112420.0,112410.0,0.11742759]
[1757497871689,1.98522005,112420.0,112410.0,0.11742759]
[1757497873894,0.02316,112390.0,112380.0,0.03408]
[1757497874186,0.77485183,112390.0,112380.0,0.12815759]
[1757497874377,1.26461377,112390.0,112380.0,0.12815759]
[1757497874578,1.28740816,112390.0,112380.0,0.12815759]
[1757497874985,1.29643385,112390.0,112380.0,0.13115759]
[1757497875182,1.22558763,112390.0,112380.0,0.13115759]
[1757497875387,1.22558763,112390.0,112380.0,0.13415759]
[1757497875588,0.41686763,112390.0,112380.0,0.13415759]
[1757497875787,1.22566763,112390.0,112380.0,0.13415759]
[1757497875991,0.40784194,112390.0,112380.0,0.13415759]
[1757497876177,1.21656194,112390.0,112380.0,0.13415759]
[1757497876382,1.21656194,112390.0,112380.0,0.13115759]
[1757497877588,1.21656194,112390.0,112380.0,0.12815759]
[1757497879994,1.28699532,112390.0,112380.0,0.12815759]
[1757497883198,0.47827532,112390.0,112380.0,0.12815759]
[1757497883497,1.28671532,112390.0,112380.0,0.12815759]
[1757497884993,0.47827532,112390.0,112380.0,0.12815759]
[1757497885299,1.28655532,112390.0,112380.0,0.12815759]
[1757497886300,1.42776501,112390.0,112380.0,0.31649938]
[1757497891204,1.43537501,112390.0,112370.0,0.01383]
[1757497891502,0.38884332,112380.0,112370.0,0.03485]
[1757497891702,1.21596194,112380.0,112370.0,0.03485]
[1757497892314,1.21596194,112380.0,112370.0,0.03585]
[1757497892501,1.35717163,112380.0,112370.0,0.17705969]
[1757497892705,0.40784194,112380.0,112370.0,0.17705969]
[1757497892915,0.54905163,112380.0,112370.0,0.17705969]
[1757497893109,1.35717163,112380.0,112370.0,0.17705969]
[1757497894205,1.35717163,112380.0,112370.0,0.17805969]
[1757497895210,1.35717163,112380.0,112370.0,0.03685]
[1757497895405,1.35717163,112380.0,112370.0,0.002]
[1757497895406,1.49838132,112380.0,112370.0,0.002]
[1757497896008,1.74838132,112380.0,112370.0,0.002]
[1757497899313,1.49838132,112380.0,112370.0,0.002]
[1757497900713,1.54643315,112380.0,112370.0,0.002]
[1757497900918,1.49838132,112380.0,112370.0,0.002]
[1757497901111,0.02155,112350.0,112340.0,0.17666969]
[1757497901410,1.3510001,112350.0,112340.0,0.17666969]
[1757497901607,1.35588342,112350.0,112340.0,0.17666969]
[1757497902211,1.35588342,112350.0,112340.0,0.18566969]
[1757497902408,1.35592342,112350.0,112340.0,0.18566969]
[1757497904416,1.42651443,112350.0,112340.0,0.18566969]
[1757497904613,1.435484,112350.0,112340.0,0.18566969]
[1757497905118,1.42651443,112350.0,112340.0,0.18566969]
[1757497906019,0.61827443,112350.0,112340.0,0.18566969]
[1757497906316,1.42651443,112350.0,112340.0,0.18566969]
[1757497907421,1.43527012,112350.0,112340.0,0.18566969]
[1757497907922,0.62703012,112350.0,112340.0,0.18566969]
[1757497908122,1.43527012,112350.0,112340.0,0.18566969]
[1757497908819,1.42655443,112350.0,112340.0,0.18566969]
[1757497909418,0.61827443,112350.0,112340.0,0.18566969]
[1757497909612,1.42655443,112350.0,112340.0,0.18566969]
[1757497911623,1.43543421,112350.0,112340.0,0.04446]
[1757497911819,1.8342539,112350.0,112340.0,0.009]